fUST/lending_fUST_20250301
["ID","MTS","AMOUNT","RATE_DAILY","PERIOD"]
[354951359,1740843045718,-164.045676,0.00028323,7]
[354951360,1740843045727,-500.0,0.00028323,2]
[354951361,1740843045736,-2772.06,0.00028323,2]
[354951362,1740843045746,-500.0,0.00028323,2]
[354951363,1740843045755,-500.0,0.00028323,2]
[354951364,1740843045764,-1074.94,0.00028323,2]
[354951365,1740843045774,-500.0,0.00028323,2]
[354951366,1740843045784,-500.0,0.00028323,2]
[354951367,1740843045793,-1726.66,0.00028323,2]
[354951368,1740843045803,-606.63,0.00028323,2]
[354951369,1740843045813,-505.23536334,0.00028323,2]
[354951370,1740843045822,-996.99,0.00028323,2]
[354951371,1740843045832,-1976.57,0.00028323,2]
[354951372,1740843045841,-3103.01,0.00028323,2]
[354951373,1740843045851,-752.85,0.00028323,2]
[354951374,1740843045861,-1627.18,0.00028323,2]
[354951375,1740843045871,-500.0,0.00028323,2]
[354951376,1740843045880,-732.39,0.00028323,2]
[354951377,1740843045890,-1308.39,0.00028323,2]
[354951378,1740843045899,-1166.12,0.00028323,2]
[354951379,1740843045909,-535.47,0.00028323,2]
[354951380,1740843045918,-1224.05,0.00028323,2]
[354951381,1740843045928,-1512.0,0.00028323,2]
[354951382,1740843045937,-500.0,0.00028323,2]
[354951383,1740843045947,-555.98,0.00028323,2]
[354951384,1740843045957,-1820.87,0.00028323,2]
[354951385,1740843045966,-500.0,0.00028323,2]
[354951386,1740843045975,-500.0,0.00028323,2]
[354951387,1740843045985,-578.28,0.00028323,2]
[354951388,1740843045994,-151.0,0.00028323,7]
[354951389,1740843046004,-500.0,0.00028323,2]
[354951390,1740843046014,-1019.54,0.00028323,2]
[354951391,1740843046024,-500.0,0.00028323,2]
[354951392,1740843046034,-790.54,0.00028323,2]
[354951393,1740843046043,-1314.59,0.00028323,2]
[354951394,1740843046053,-500.0,0.00028323,2]
[354951395,1740843046063,-632.89,0.00028323,2]
[354951396,1740843046072,-211.618094,0.00028323,7]
[354951397,1740843046082,-500.0,0.00028323,2]
[354951398,1740843046093,-211.618094,0.00028323,7]
[354951399,1740843046103,-500.0,0.00028323,2]
[354951400,1740843046113,-1719.86,0.00028323,2]
[354951401,1740843046122,-797.48,0.00028323,2]
[354951402,1740843046133,-151.0,0.00028323,7]
[354951403,1740843046143,-500.0,0.00028323,2]
[354951404,1740843046152,-1284.06,0.00028323,2]
[354951405,1740843046162,-151.0,0.00028323,7]
[354951406,1740843046174,-500.0,0.00028323,2]
[354951408,1740843046185,-5343.26,0.00028323,2]
[354951409,1740843046194,-870.77,0.00028323,2]
[354951410,1740843046203,-281.14391,0.00028323,7]
[354951411,1740843046213,-500.0,0.00028323,2]
[354951412,1740843046222,-500.0,0.00028323,2]
[354951413,1740843046232,-55319.82923981,0.00028324,20]
[354951414,1740843046242,-41079.44577327,0.00028324,17]
[354951415,1740843046518,-32331.43877514,0.00028324,17]
[354951416,1740843047891,-45228.31389693,0.00028324,17]
[354951417,1740843047901,-500.0,0.00028324,2]
[354951418,1740843047911,-500.0,0.00028324,2]
[354951419,1740843047921,-500.0,0.00028324,2]
[354951420,1740843047930,-561.63,0.00028324,2]
[354951421,1740843047940,-500.0,0.00028324,2]
[354951422,1740843047950,-500.0,0.00028324,2]
[354951423,1740843047959,-500.0,0.00028324,2]
[354951424,1740843047969,-500.0,0.00028324,2]
[354951425,1740843047979,-500.0,0.00028324,2]
[354951426,1740843047988,-738.77,0.00028324,2]
[354951427,1740843047998,-500.0,0.00028324,2]
[354951428,1740843048007,-500.0,0.00028324,2]
[354951429,1740843048017,-500.0,0.00028324,2]
[354951430,1740843048028,-500.0,0.00028324,2]
[354951431,1740843048037,-698.16,0.00028324,2]
[354951432,1740843048048,-500.0,0.00028324,2]
[354951433,1740843048058,-532.49,0.00028324,2]
[354951434,1740843048068,-500.0,0.00028324,2]
[354951435,1740843048078,-634.3,0.00028324,2]
[354951436,1740843048088,-612.15,0.00028324,2]
[354951437,1740843048102,-914.64,0.00028324,2]
[354951438,1740843048112,-500.0,0.00028324,2]
[354951439,1740843048122,-500.0,0.00028324,2]
[354951440,1740843048132,-1192.04,0.00028324,2]
[354951441,1740843048144,-500.0,0.00028324,2]
[354951442,1740843048154,-500.0,0.00028324,2]
[354951443,1740843048164,-500.0,0.00028324,2]
[354951444,1740843048176,-500.0,0.00028324,2]
[354951445,1740843048186,-529.51,0.00028324,2]
[354951446,1740843048195,-500.0,0.00028324,2]
[354951447,1740843048206,-500.0,0.00028324,2]
[354951448,1740843048216,-720.16,0.00028324,2]
[354951449,1740843048226,-500.0,0.00028324,2]
[354951450,1740843048236,-1601.74,0.00028324,2]
[354951451,1740843048246,-500.0,0.00028324,2]
[354951452,1740843048256,-608.58279509,0.00028324,2]
[354951453,1740843048266,-500.0,0.00028324,2]
[354951454,1740843048277,-500.0,0.00028324,2]
[354951455,1740843048288,-500.0,0.00028324,2]
[354951456,1740843048298,-407.71982037,0.00028324,2]
[354951457,1740843048308,-500.0,0.00028324,2]
[354951458,1740843048319,-500.0,0.00028324,2]
[354951459,1740843048329,-500.0,0.00028324,2]
[354951460,1740843048339,-500.0,0.00028324,2]
[354951461,1740843048349,-500.0,0.00028324,2]
[354951462,1740843048359,-500.0,0.00028324,2]
[354951463,1740843048369,-976.88,0.00028324,2]
[354951464,1740843048379,-500.0,0.00028324,2]
[354951465,1740843048390,-564.3,0.00028324,2]
[354951466,1740843048400,-500.0,0.00028324,2]
[354951467,1740843048410,-151.0,0.00028324,7]
[354951468,1740843048420,-609.49,0.00028324,2]
[354951469,1740843048431,-711.93,0.00028324,2]
[354951470,1740843048440,-500.0,0.00028324,2]
[354951471,1740843048451,-500.0,0.00028324,2]
[354951472,1740843048460,-591.857453,0.00028324,7]
[354951473,1740843048471,-1088.68,0.00028324,2]
[354951474,1740843048481,-591.857453,0.00028324,7]
[354951475,1740843048491,-500.0,0.00028324,2]
[354951476,1740843048501,-500.0,0.00028324,2]
[354951477,1740843048511,-151.0,0.00028324,7]
[354951478,1740843048521,-500.0,0.00028324,2]
[354951479,1740843048531,-500.0,0.00028324,2]
[354951480,1740843048540,-681.73,0.00028324,2]
[354951481,1740843048550,-500.0,0.00028324,2]
[354951482,1740843048559,-500.0,0.00028324,2]
[354951483,1740843048569,-500.0,0.00028324,2]
[354951484,1740843048579,-500.0,0.00028324,2]
[354951485,1740843048589,-636.36073222,0.00028324,2]
[354951486,1740843048599,-500.0,0.00028324,2]
[354951487,1740843048609,-500.0,0.00028324,2]
[354951488,1740843048619,-500.0,0.00028324,2]
[354951489,1740843048628,-151.0,0.00028324,7]
[354951490,1740843048638,-500.0,0.00028324,2]
[354951491,1740843048648,-853.35,0.00028324,2]
[354951492,1740843048658,-628.00516313,0.00028324,2]
[354951493,1740843048668,-304.61263341,0.00028324,2]
[354951494,1740843048678,-1126.07,0.00028324,2]
[354951495,1740843048689,-500.0,0.00028324,2]
[354951496,1740843048699,-500.0,0.00028324,2]
[354951497,1740843048709,-500.0,0.00028324,2]
[354951498,1740843048718,-151.0,0.00028324,7]
[354951499,1740843048728,-500.0,0.00028324,2]
[354951500,1740843048739,-151.0,0.00028324,7]
[354951501,1740843048749,-500.0,0.00028324,2]
[354951502,1740843048758,-151.0,0.00028324,7]
[354951503,1740843048768,-500.0,0.00028324,2]
[354951504,1740843048779,-313.08523856,0.00028324,2]
[354951505,1740843048789,-508.19754792,0.00028324,2]
[354951506,1740843048799,-500.0,0.00028324,2]
[354951507,1740843048809,-151.0,0.00028324,7]
[354951508,1740843048819,-500.0,0.00028324,2]
[354951509,1740843048830,-500.0,0.00028324,2]
[354951510,1740843048840,-500.0,0.00028324,2]
[354951511,1740843048849,-717.79,0.00028324,2]
[354951512,1740843048859,-500.0,0.00028324,2]
[354951513,1740843048869,-717.78,0.00028324,2]
[354951514,1740843048879,-500.0,0.00028324,2]
[354951515,1740843048889,-151.0,0.00028324,7]
[354951516,1740843048899,-876.65,0.00028324,2]
[354951517,1740843048909,-427.71793348,0.00028324,2]
[354951518,1740843048919,-500.0,0.00028324,2]
[354951519,1740843048929,-1158.164731,0.00028324,2]
[354951520,1740843048939,-515.03793457,0.00028324,2]
[354951521,1740843048948,-500.0,0.00028324,2]
[354951522,1740843048958,-1158.164731,0.00028324,2]
[354951523,1740843048967,-1323.71,0.00028324,2]
[354951524,1740843048977,-517.30928099,0.00028324,2]
[354951525,1740843048986,-500.0,0.00028324,2]
[354951526,1740843048996,-465.10513323,0.00028324,2]
[354951527,1740843049006,-192.72556935,0.00028324,2]
[354951528,1740843049016,-151.0,0.00028324,7]
[354951529,1740843049027,-500.0,0.00028324,2]
[354951530,1740843049037,-895.68,0.00028324,2]
[354951531,1740843049047,-151.0,0.00028324,7]
[354951532,1740843049056,-500.0,0.00028324,2]
[354951533,1740843049066,-395.55672874,0.00028324,2]
[354951534,1740843049076,-500.0,0.00028324,2]
[354951535,1740843049086,-164.045676,0.00028324,7]
[354951536,1740843049099,-500.0,0.00028324,2]
[354951537,1740843049108,-164.045676,0.00028324,7]
[354951538,1740843049118,-500.0,0.00028324,2]
[354951539,1740843049128,-512.8356983,0.00028324,2]
[354951540,1740843049139,-500.0,0.00028324,2]
[354951541,1740843049148,-500.0,0.00028324,2]
[354951542,1740843049158,-500.0,0.00028324,2]
[354951543,1740843049169,-500.0,0.00028324,2]
[354951544,1740843049179,-1365.39,0.00028324,2]
[354951545,1740843049189,-500.0,0.00028324,2]
[354951546,1740843049200,-896.49,0.00028324,2]
[354951547,1740843049210,-9100.23,0.00028324,2]
[354951548,1740843049220,-286.379103,0.00028324,7]
[354951549,1740843049230,-286.379103,0.00028324,7]
[354951550,1740843049240,-286.379103,0.00028324,7]
[354951551,1740843049250,-286.379103,0.00028324,7]
[354951552,1740843049260,-500.0,0.00028324,2]
[354951553,1740843049270,-49128.38767279,0.00028324,2]
[354951554,1740843049499,-1990.50096186,0.00028324,2]
[354951555,1740843050725,-500.0,0.00028324,2]
[354951556,1740843050992,-570.58571312,0.00027676,2]
[354951557,1740843051002,-3686.72,0.00027773,2]
[354951558,1740843051012,-3686.72,0.00028047,2]
[354951559,1740843051021,-1527.25370721,0.00028321,2]
[354951560,1740843051035,-2159.46629279,0.00028321,2]
[354951561,1740843051045,-2751.45402666,0.00028324,2]
[354951562,1740843051058,-80609.48899767,0.00028324,2]
[354951563,1740843051070,-13700.00000025,0.00028324,2]
[354951564,1740843052207,-236.67695312,0.00028324,2]
[354951565,1740843052218,-1546.78600054,0.00028324,2]
[354951566,1740843054593,-500.0,0.00027773,2]
[354951567,1740843054603,-500.0,0.00027774,2]
[354951568,1740843054612,-500.0,0.00027774,2]
[354951569,1740843054622,-500.0,0.00027775,2]
[354951570,1740843054632,-248.27052954,0.00027775,2]
[354951571,1740843054641,-500.0,0.00027776,2]
[354951572,1740843054651,-570.5857131,0.00027813,2]
[354951573,1740843054661,-570.5857131,0.00027949,2]
[354951574,1740843054670,-79.22622342,0.00028047,2]
[354951575,1740843054745,218.88,0.00027397,2]
[354951576,1740843065322,1070.800269,0.00027074,2]
[354951577,1740843095834,448.0463552,0.00027397,2]
[354951578,1740843172697,7308.70059009,0.00028,10]
[354951580,1740843369766,250.0,0.000265,30]
[354951581,1740843389293,99750.0,0.00027,10]
[354951582,1740843439042,100000.0,0.00026,14]
[354951584,1740843473804,249.88,0.00025204,14]
[354951587,1740843756340,10470.21,0.00025,7]
[354951588,1740843987981,-151.0,0.00024,2]
[354951589,1740843988004,-850.9847602,0.00025429,2]
[354951590,1740843988025,-2466.2609964,0.00025434,2]
[354951591,1740843988049,-300.0,0.00025972,2]
[354951592,1740843988072,-6231.7542434,0.00025973,2]
[354951593,1740844030138,-636.68723782,0.00025973,2]
[354951594,1740844037093,-3131.55851878,0.00025973,2]
[354951595,1740844037119,-250.0,0.00026171,2]
[354951596,1740844037142,-468.40566692,0.00026188,2]
[354951597,1740844037169,-254.3256035,0.00026198,2]
[354951598,1740844037193,-64.22694366,0.00026224,2]
[354951599,1740844042191,-175.81522297,0.00026224,2]
[354951600,1740844048131,-346.32195194,0.00026224,2]
[354951601,1740844048154,-300.0,0.00026323,2]
[354951602,1740844048179,-1080.95799444,0.00026324,2]
[354951603,1740844050078,-277.64147415,0.00026324,2]
[354951604,1740844060332,-3488.09202511,0.00026324,2]
[354951605,1740844060362,-500.0,0.00026449,2]
[354951606,1740844060386,-521.90352043,0.00026449,2]
[354951607,1740844060416,-500.0,0.00026449,2]
[354951608,1740844060443,-500.0,0.00026449,2]
[354951609,1740844060470,-500.0,0.00026449,2]
[354951610,1740844060498,-500.0,0.00026449,2]
[354951611,1740844060525,-500.0,0.00026449,2]
[354951612,1740844060555,-500.0,0.00026449,2]
[354951613,1740844060582,-500.0,0.00026449,2]
[354951614,1740844060608,-500.0,0.00026449,2]
[354951615,1740844060632,-500.0,0.00026449,2]
[354951616,1740844060658,-500.0,0.00026449,2]
[354951617,1740844060684,-490.00445446,0.00026449,2]
[354951625,1740844148086,-300.0,0.0002548,2]
[354951626,1740844148108,-24900.0,0.00025481,2]
[354951627,1740844148131,-500.0,0.00026349,2]
[354951628,1740844148153,-500.0,0.00026349,2]
[354951629,1740844148176,-500.0,0.00026349,2]
[354951630,1740844148200,-500.0,0.00026349,2]
[354951631,1740844148226,-500.0,0.00026349,2]
[354951632,1740844148248,-500.0,0.00026349,2]
[354951633,1740844148271,-500.0,0.00026349,2]
[354951634,1740844148293,-500.0,0.00026349,2]
[354951635,1740844148315,-500.0,0.00026349,2]
[354951636,1740844148338,-500.0,0.00026349,2]
[354951637,1740844148362,-500.0,0.00026349,2]
[354951638,1740844148386,-500.0,0.00026349,2]
[354951639,1740844148408,-500.0,0.00026349,2]
[354951640,1740844148432,-500.0,0.00026349,2]
[354951641,1740844148455,-500.0,0.00026349,2]
[354951642,1740844148477,-500.0,0.00026349,2]
[354951643,1740844148500,-500.0,0.00026349,2]
[354951644,1740844148525,-452.67507867,0.00026349,2]
[354951645,1740844148551,-500.0,0.00026349,2]
[354951646,1740844148574,-400.00000001,0.00026349,2]
[354951647,1740844148596,-500.0,0.00026349,2]
[354951648,1740844148618,-500.0,0.00026349,2]
[354951649,1740844148642,-500.0,0.00026349,2]
[354951650,1740844149018,-500.0,0.00026349,2]
[354951651,1740844149041,-500.0,0.00026349,2]
[354951652,1740844149062,-303.21014283,0.00026349,2]
[354951653,1740844149087,-500.0,0.00026349,2]
[354951654,1740844149110,-500.0,0.00026349,2]
[354951655,1740844149132,-500.0,0.00026349,2]
[354951656,1740844149155,-500.0,0.00026349,2]
[354951657,1740844149178,-500.0,0.00026349,2]
[354951658,1740844149203,-500.0,0.00026349,2]
[354951659,1740844149227,-500.0,0.00026349,2]
[354951660,1740844149249,-500.0,0.00026349,2]
[354951661,1740844149272,-500.0,0.00026349,2]
[354951662,1740844149297,-500.0,0.00026349,2]
[354951663,1740844149320,-500.0,0.00026349,2]
[354951664,1740844149344,-500.0,0.00026349,2]
[354951665,1740844149368,-500.0,0.00026349,2]
[354951666,1740844149392,-500.0,0.00026349,2]
[354951667,1740844149418,-500.0,0.00026349,2]
[354951668,1740844149447,-500.0,0.00026349,2]
[354951669,1740844149474,-500.0,0.00026349,2]
[354951670,1740844149498,-500.0,0.00026349,2]
[354951671,1740844149526,-500.0,0.00026349,2]
[354951672,1740844149549,-500.0,0.00026349,2]
[354951673,1740844149574,-641.90482412,0.00026349,2]
[354951674,1740844149598,-500.0,0.00026349,2]
[354951675,1740844149624,-500.0,0.00026349,2]
[354951676,1740844149651,-500.0,0.00026349,2]
[354951677,1740844149675,-500.0,0.00026349,2]
[354951678,1740844149701,-500.0,0.00026349,2]
[354951679,1740844149724,-500.0,0.00026349,2]
[354951680,1740844149750,-500.0,0.00026349,2]
[354951681,1740844149773,-500.0,0.00026349,2]
[354951682,1740844149797,-500.0,0.00026349,2]
[354951683,1740844149820,-500.0,0.00026349,2]
[354951684,1740844149843,-500.0,0.00026349,2]
[354951685,1740844149869,-500.0,0.00026349,2]
[354951686,1740844149892,-500.0,0.00026349,2]
[354951687,1740844149915,-500.0,0.00026349,2]
[354951688,1740844149940,-500.0,0.00026349,2]
[354951689,1740844149964,-250.53270758,0.00026349,2]
[354951690,1740844149999,-249.46729242,0.00026349,2]
[354951691,1740844150022,-500.0,0.00026349,2]
[354951692,1740844150045,-500.0,0.00026349,2]
[354951693,1740844150070,-500.0,0.00026349,2]
[354951694,1740844150093,-500.0,0.00026349,2]
[354951695,1740844150116,-500.0,0.00026349,2]
[354951696,1740844150142,-500.0,0.00026349,2]
[354951697,1740844150165,-500.0,0.00026349,2]
[354951698,1740844150190,-500.0,0.00026349,2]
[354951699,1740844150214,-500.0,0.00026349,2]
[354951700,1740844150236,-500.0,0.00026349,2]
[354951701,1740844150261,-500.0,0.00026349,2]
[354951702,1740844150283,-500.0,0.00026349,2]
[354951703,1740844150305,-500.0,0.00026349,2]
[354951704,1740844150331,-500.0,0.00026349,2]
[354951705,1740844150354,-500.0,0.00026349,2]
[354951706,1740844150376,-500.0,0.00026349,2]
[354951707,1740844150401,-500.0,0.00026349,2]
[354951708,1740844150423,-500.0,0.00026349,2]
[354951709,1740844150449,-500.0,0.00026349,2]
[354951710,1740844150473,-579.6734933,0.00026349,2]
[354951711,1740844150497,-500.0,0.00026349,2]
[354951712,1740844150522,-500.0,0.00026349,2]
[354951713,1740844150544,-500.0,0.00026349,2]
[354951714,1740844150568,-500.0,0.00026349,2]
[354951715,1740844150591,-500.0,0.00026349,2]
[354951716,1740844150616,-500.0,0.00026349,2]
[354951717,1740844150639,-500.0,0.00026349,2]
[354951718,1740844150662,-500.0,0.00026349,2]
[354951719,1740844150688,-500.0,0.00026349,2]
[354951720,1740844150711,-500.0,0.00026349,2]
[354951721,1740844150735,-500.0,0.00026349,2]
[354951722,1740844150758,-500.0,0.00026349,2]
[354951723,1740844150782,-500.0,0.00026349,2]
[354951724,1740844150805,-500.0,0.00026349,2]
[354951725,1740844150829,-500.0,0.00026349,2]
[354951726,1740844150853,-500.0,0.00026349,2]
[354951727,1740844150877,-500.0,0.00026349,2]
[354951728,1740844150902,-845.71680438,0.00026349,2]
[354951729,1740844150924,-500.0,0.00026349,2]
[354951730,1740844150950,-500.0,0.00026349,2]
[354951731,1740844150972,-500.0,0.00026349,2]
[354951732,1740844150995,-500.0,0.00026349,2]
[354951733,1740844151020,-845.71680438,0.00026349,2]
[354951734,1740844151042,-500.0,0.00026349,2]
[354951735,1740844151065,-500.0,0.00026349,2]
[354951736,1740844151090,-845.71680438,0.00026349,2]
[354951737,1740844151113,-500.0,0.00026349,2]
[354951738,1740844151136,-500.0,0.00026349,2]
[354951739,1740844151159,-500.0,0.00026349,2]
[354951740,1740844151185,-845.71680438,0.00026349,2]
[354951741,1740844151208,-500.0,0.00026349,2]
[354951742,1740844151232,-500.0,0.00026349,2]
[354951743,1740844151259,-845.71680438,0.00026349,2]
[354951744,1740844151284,-500.0,0.00026349,2]
[354951745,1740844151307,-450.0,0.00026349,2]
[354951746,1740844151331,-343.32324403,0.00026349,2]
[354951747,1740844151805,-295.78529602,0.00026349,2]
[354951748,1740844151830,-845.71680438,0.00026349,2]
[354951749,1740844151852,-500.0,0.00026349,2]
[354951750,1740844151875,-500.0,0.00026349,2]
[354951751,1740844151901,-845.71680438,0.00026349,2]
[354951752,1740844151924,-500.0,0.00026349,2]
[354951753,1740844151949,-845.71680438,0.00026349,2]
[354951754,1740844151972,-500.0,0.00026349,2]
[354951755,1740844151999,-167.06429084,0.00026349,2]
[354951756,1740844152288,-678.65251354,0.00026349,2]
[354951757,1740844152312,-500.0,0.00026349,2]
[354951758,1740844152338,-845.71680438,0.00026349,2]
[354951759,1740844152362,-128.11914608,0.00026349,2]
[354951760,1740844156088,-717.5976583,0.00026349,2]
[354951761,1740844156118,-500.0,0.00026349,2]
[354951762,1740844156145,-845.71680438,0.00026349,2]
[354951763,1740844156172,-845.71680438,0.00026349,2]
[354951764,1740844156199,-845.71680438,0.00026349,2]
[354951765,1740844156226,-845.71680438,0.00026349,2]
[354951766,1740844156253,-845.71680438,0.00026349,2]
[354951767,1740844156278,-845.71680438,0.00026349,2]
[354951768,1740844156304,-845.71680438,0.00026349,2]
[354951769,1740844156329,-845.71680438,0.00026349,2]
[354951770,1740844156353,-845.71680438,0.00026349,2]
[354951771,1740844156377,-845.71680438,0.00026349,2]
[354951772,1740844156403,-845.71680438,0.00026349,2]
[354951773,1740844156428,-845.71680438,0.00026349,2]
[354951774,1740844156456,-845.71680438,0.00026349,2]
[354951775,1740844156480,-845.71680438,0.00026349,2]
[354951776,1740844156507,-845.71680438,0.00026349,2]
[354951777,1740844156535,-845.71680438,0.00026349,2]
[354951778,1740844156562,-845.71680438,0.00026349,2]
[354951779,1740844156589,-845.71680438,0.00026349,2]
[354951780,1740844156616,-845.71680438,0.00026349,2]
[354951781,1740844156642,-845.71680438,0.00026349,2]
[354951782,1740844156667,-845.71680438,0.00026349,2]
[354951783,1740844156693,-845.71680438,0.00026349,2]
[354951784,1740844156718,-845.71680438,0.00026349,2]
[354951785,1740844156744,-845.71680438,0.00026349,2]
[354951786,1740844156769,-845.71680438,0.00026349,2]
[354951787,1740844156793,-845.71680438,0.00026349,2]
[354951788,1740844156818,-837.99796053,0.00026349,2]
[354951789,1740844156844,-837.99796053,0.00026349,2]
[354951790,1740844156868,-837.99796053,0.00026349,2]
[354951791,1740844156893,-837.99796053,0.00026349,2]
[354951792,1740844156917,-837.99796053,0.00026349,2]
[354951793,1740844156942,-837.99796053,0.00026349,2]
[354951794,1740844156967,-837.99796053,0.00026349,2]
[354951795,1740844156993,-837.99796053,0.00026349,2]
[354951796,1740844157018,-837.99796053,0.00026349,2]
[354951797,1740844157042,-837.99796053,0.00026349,2]
[354951798,1740844157068,-837.99796053,0.00026349,2]
[354951799,1740844157095,-837.99796053,0.00026349,2]
[354951800,1740844157124,-837.99796053,0.00026349,2]
[354951801,1740844157155,-837.99796053,0.00026349,2]
[354951802,1740844157183,-837.99796053,0.00026349,2]
[354951803,1740844157210,-837.99796053,0.00026349,2]
[354951804,1740844157237,-837.99796053,0.00026349,2]
[354951805,1740844157264,-837.99796053,0.00026349,2]
[354951806,1740844157291,-837.99796053,0.00026349,2]
[354951807,1740844157317,-837.99796053,0.00026349,2]
[354951808,1740844157343,-837.99796053,0.00026349,2]
[354951809,1740844157366,-2771.09123635,0.0002635,2]
[354951810,1740844157389,-606.41,0.00026439,3]
[354951811,1740844157414,-303.21,0.00026439,3]
[354951812,1740844157440,-151.6,0.00026439,3]
[354951813,1740844157463,-7110.4617372,0.0002645,2]
[354951814,1740844157486,-293.5815439,0.00026655,2]
[354951815,1740844157510,-160.53,0.00026848,2]
[354951816,1740844157536,-453.86350768,0.000269,4]
[354951817,1740844157560,-2771.09123632,0.00027204,2]
[354951818,1740844157583,-454.85,0.00027387,3]
[354951819,1740844157607,-289.84533661,0.00027396,2]
[354951820,1740844157632,-500.0,0.00027396,2]
[354951821,1740844157654,-500.0,0.00027396,2]
[354951822,1740844157678,-234.11179865,0.00027396,2]
[354951823,1740844157700,-51.9536448,0.00027397,2]
[354951824,1740844157722,-500.0,0.00027397,2]
[354951825,1740844157744,-1244.72,0.00027397,2]
[354951826,1740844157766,-1244.72,0.00027397,2]
[354951827,1740844157789,-1244.72,0.00027397,2]
[354951828,1740844157811,-500.0,0.00027397,2]
[354951829,1740844157833,-500.0,0.00027397,2]
[354951830,1740844157855,-500.0,0.00027397,2]
[354951831,1740844157877,-500.0,0.00027397,2]
[354951832,1740844157900,-500.0,0.00027397,2]
[354951833,1740844157923,-500.0,0.00027397,2]
[354951834,1740844157945,-500.0,0.00027397,2]
[354951835,1740844157968,-500.0,0.00027397,2]
[354951836,1740844157990,-500.0,0.00027397,2]
[354951837,1740844158012,-500.0,0.00027397,2]
[354951838,1740844158038,-500.0,0.00027397,2]
[354951839,1740844158061,-500.0,0.00027397,2]
[354951840,1740844158084,-500.0,0.00027397,2]
[354951841,1740844158106,-500.0,0.00027397,2]
[354951842,1740844158128,-500.0,0.00027397,2]
[354951843,1740844158151,-500.0,0.00027397,2]
[354951844,1740844158174,-500.0,0.00027397,2]
[354951845,1740844158196,-883.6,0.00027397,2]
[354951846,1740844158220,-500.0,0.00027397,2]
[354951847,1740844158243,-428.94995031,0.00027397,2]
[354951848,1740844159007,-74.23573226,0.00027397,2]
[354951849,1740844159029,-223.87151329,0.00027397,2]
[354951850,1740844159050,-500.0,0.00027397,2]
[354951851,1740844159071,-329.71427661,0.00027397,2]
[354951852,1740844159094,-500.0,0.00027397,2]
[354951853,1740844159117,-892.61,0.00027397,2]
[354951854,1740844159141,-379.16911477,0.00027397,2]
[354951855,1740844161094,-120.83088523,0.00027397,2]
[354951856,1740844161121,-500.0,0.00027397,2]
[354951857,1740844161148,-500.0,0.00027397,2]
[354951858,1740844161172,-500.0,0.00027397,2]
[354951859,1740844161195,-500.0,0.00027397,2]
[354951860,1740844161218,-500.0,0.00027397,2]
[354951861,1740844161242,-500.0,0.00027397,2]
[354951862,1740844161265,-500.0,0.00027397,2]
[354951863,1740844161289,-500.0,0.00027397,2]
[354951864,1740844161313,-500.0,0.00027397,2]
[354951865,1740844161337,-500.0,0.00027397,2]
[354951866,1740844161360,-500.0,0.00027397,2]
[354951867,1740844161383,-500.0,0.00027397,2]
[354951868,1740844161405,-500.0,0.00027397,2]
[354951869,1740844161427,-500.0,0.00027397,2]
[354951870,1740844161453,-500.0,0.00027397,2]